[Event "16th EWICC 2015"]
[Site "Kutaisi"]
[Date "2015.06.03"]
[Round "11"]
[White "Stefanova, Antoaneta"]
[Black "Melia, Salome"]
[Result "1/2-1/2"]
[ECO "A08"]
[WhiteElo "2512"]
[BlackElo "2452"]
[Annotator "Robot 11"]
[PlyCount "135"]
[EventDate "2015.??.??"]
[EventCountry "GEO"]
[TimeControl "900+10"]

1. Nf3 {[%emt 0:00:02]} Nf6 {[%emt 0:00:01]} 2. g3 {[%emt 0:00:02]} d5 {[%emt
0:00:03]} 3. Bg2 {[%emt 0:00:02]} e6 {[%emt 0:00:17]} 4. O-O {[%emt 0:00:08]}
Be7 {[%emt 0:00:08]} 5. d3 {[%emt 0:00:37]} c5 {[%emt 0:00:40]} 6. Nbd2 {[%emt
0:00:02]} Nc6 {[%emt 0:00:01]} 7. e4 {[%emt 0:00:07]} O-O {[%emt 0:00:04]} 8.
Re1 {[%emt 0:00:01]} b5 {[%emt 0:00:05]} 9. a4 {[%emt 0:00:13]} b4 {[%emt 0:00:
49]} 10. exd5 {[%emt 0:00:02]} Nxd5 {[%emt 0:00:02]} 11. Nc4 {[%emt 0:00:37]}
Bb7 {[%emt 0:00:35]} 12. h4 {[%emt 0:00:42]} h6 {[%emt 0:00:04]} 13. a5 {[%emt
0:01:10]} Rc8 {[%emt 0:00:31]} 14. Nfe5 {[%emt 0:00:45]} Nxe5 {[%emt 0:01:00]}
15. Nxe5 {[%emt 0:00:02]} Bf6 {[%emt 0:00:54]} 16. Qh5 {[%emt 0:01:00]} Bxe5 {
[%emt 0:03:17]} 17. Qxe5 {[%emt 0:00:19]} Qc7 {[%emt 0:00:02]} 18. c4 {[%emt 0:
04:02]} bxc3 {[%emt 0:00:24]} 19. bxc3 {[%emt 0:00:04]} Qxe5 {[%emt 0:01:21]}
20. Rxe5 {[%emt 0:00:02]} c4 {[%emt 0:00:19]} 21. d4 {[%emt 0:02:19]} Bc6 {
[%emt 0:00:38]} 22. Bxd5 {[%emt 0:02:21]} Bxd5 {[%emt 0:00:04]} 23. Ba3 {[%emt
0:00:02]} Rfd8 {[%emt 0:02:15]} 24. Bc5 {[%emt 0:00:40]} a6 {[%emt 0:00:02]}
25. Rb1 {[%emt 0:00:04]} f6 {[%emt 0:03:11]} 26. Ree1 {[%emt 0:00:20]} Kf7 {
[%emt 0:00:01]} 27. Rb6 {[%emt 0:00:18]} Ra8 {[%emt 0:00:01]} 28. f4 {[%emt 0:
00:57]} h5 {[%emt 0:00:37]} 29. Kf2 {[%emt 0:00:04]} Kg6 {[%emt 0:00:19]} 30.
Reb1 {[%emt 0:00:55]} Kf5 {[%emt 0:00:03]} 31. Bd6 {[%emt 0:00:15]} Rd7 {[%emt
0:00:11]} 32. Bc5 {[%emt 0:00:18]} Kg4 {[%emt 0:00:45]} 33. Rb8 {[%emt 0:00:52]
} Rxb8 {[%emt 0:00:02]} 34. Rxb8 {[%emt 0:00:02]} Rb7 {[%emt 0:00:21]} 35. Rxb7
{[%emt 0:00:29]} Bxb7 {[%emt 0:00:02]} 36. Bf8 {[%emt 0:00:06]} g6 {[%emt 0:00:
58]} 37. Be7 {[%emt 0:00:10]} Kf5 {[%emt 0:00:03]} 38. Ke3 {[%emt 0:00:35]} Bd5
{[%emt 0:00:02]} 39. Bd8 {[%emt 0:00:04]} e5 {[%emt 0:00:40]} 40. dxe5 {[%emt
0:00:10]} fxe5 {[%emt 0:00:02]} 41. fxe5 {[%emt 0:00:02]} Kxe5 {[%emt 0:00:05]}
42. Bc7+ {[%emt 0:00:01]} Kf5 {[%emt 0:00:46]} 43. Kd4 {[%emt 0:00:04]} Be6 {
[%emt 0:00:11]} 44. Kc5 {[%emt 0:00:05]} Ke4 {[%emt 0:00:08]} 45. Kc6 {[%emt 0:
00:32]} Bc8 {[%emt 0:00:11]} 46. Bf4 {[%emt 0:00:11]} Kd3 {[%emt 0:00:12]} 47.
Be5 {[%emt 0:00:09]} Ke4 {[%emt 0:00:08]} 48. Bg7 {[%emt 0:00:36]} Be6 {[%emt
0:00:09]} 49. Kb7 {[%emt 0:00:15]} Kd5 {[%emt 0:00:01]} 50. Bf8 {[%emt 0:00:02]
} Bd7 {[%emt 0:00:07]} 51. Kxa6 {[%emt 0:00:05]} Kc6 {[%emt 0:00:00]} 52. Bb4 {
[%emt 0:00:13]} Bc8+ {[%emt 0:00:20]} 53. Ka7 {[%emt 0:00:01]} Bb7 {[%emt 0:00:
25]} 54. Be7 {[%emt 0:00:13]} Bc8 {[%emt 0:00:02]} 55. Bf6 {[%emt 0:00:03]} Bb7
{[%emt 0:00:08]} 56. Kb8 {[%emt 0:00:08]} Ba6 {[%emt 0:00:05]} 57. Bd4 {[%emt
0:00:05]} Bb7 {[%emt 0:00:14]} 58. Ka7 {[%emt 0:00:06]} Bc8 {[%emt 0:00:06]}
59. Be5 {[%emt 0:00:06]} Bb7 {[%emt 0:00:08]} 60. a6 {[%emt 0:00:37]} Bc8 {
[%emt 0:00:01]} 61. Bf4 {[%emt 0:00:02]} Kb5 {[%emt 0:00:05]} 62. Kb8 {[%emt 0:
00:02]} Bxa6 {[%emt 0:00:02]} 63. Kc7 {[%emt 0:00:01]} Kc5 {[%emt 0:00:22]} 64.
Kd7 {[%emt 0:00:12]} Kd5 {[%emt 0:00:03]} 65. Ke7 {[%emt 0:00:03]} Bc8 {[%emt
0:00:01]} 66. Kf6 {[%emt 0:00:04]} Bf5 {[%emt 0:00:21]} 67. Kf7 {[%emt 0:00:21]
} Be4 {[%emt 0:00:10]} 68. Kf6 {Ke5+} 1/2-1/2

[Event "16th EWICC 2015"]
[Site "Kutaisi"]
[Date "2015.06.03"]
[Round "11"]
[White "Tedoshvili, Ana"]
[Black "Khmiadashvili, Tamar"]
[Result "0-1"]
[ECO "A40"]
[WhiteElo "1805"]
[BlackElo "2043"]
[Annotator "Robot 11"]
[PlyCount "44"]
[EventDate "2015.??.??"]
[EventCountry "GEO"]
[TimeControl "900+10"]

1. d4 {[%emt 0:00:02]} e6 {[%emt 0:00:02]} 2. Nf3 {[%emt 0:00:02]} f5 {[%emt 0:
00:02]} 3. g3 {[%emt 0:00:03]} Nf6 {[%emt 0:00:02]} 4. Bg2 {[%emt 0:00:02]} g6
{[%emt 0:00:16]} 5. O-O {[%emt 0:00:03]} Bg7 {[%emt 0:00:01]} 6. e3 {[%emt 0:
00:05]} O-O {[%emt 0:00:03]} 7. c4 {[%emt 0:00:08]} d6 {[%emt 0:00:02]} 8. Nc3
{[%emt 0:00:14]} c6 {[%emt 0:00:06]} 9. Qc2 {[%emt 0:00:06]} Qe7 {[%emt 0:00:
05]} 10. b3 {[%emt 0:00:02]} a5 {[%emt 0:00:19]} 11. Bb2 {[%emt 0:00:05]} Nbd7
{[%emt 0:00:04]} 12. e4 {[%emt 0:00:16]} e5 {[%emt 0:00:17]} 13. dxe5 {[%emt 0:
00:15]} Nxe5 {[%emt 0:00:17]} 14. Nxe5 {[%emt 0:00:05]} dxe5 {[%emt 0:00:02]}
15. Rad1 {[%emt 0:00:10]} f4 {[%emt 0:00:24]} 16. Qd3 {[%emt 0:01:08]} Nh5 {
[%emt 0:01:27]} 17. Ne2 {[%emt 0:01:12]} g5 {[%emt 0:00:31]} 18. f3 {[%emt 0:
00:49]} g4 {[%emt 0:01:00]} 19. Qd6 {[%emt 0:00:30]} Qg5 {[%emt 0:01:00]} 20.
Bc1 {[%emt 0:03:21]} gxf3 {[%emt 0:00:20]} 21. Rxf3 {[%emt 0:00:06]} Bg4 {
[%emt 0:00:47]} 22. Rf2 {[%emt 0:00:55]} Rad8 {[%emt 0:00:09]} 0-1

[Event "16th EWICC 2015"]
[Site "Kutaisi"]
[Date "2015.06.03"]
[Round "11"]
[White "Choladze, Tea"]
[Black "Khomeriki, Ketevan"]
[Result "1-0"]
[ECO "C51"]
[WhiteElo "1755"]
[BlackElo "1861"]
[Annotator "Robot 11"]
[PlyCount "149"]
[EventDate "2015.??.??"]
[EventCountry "GEO"]
[TimeControl "900+10"]

1. e4 {[%emt 0:00:02]} e5 {[%emt 0:00:02]} 2. Nf3 {[%emt 0:00:01]} Nc6 {[%emt
0:00:03]} 3. Bc4 {[%emt 0:00:02]} Bc5 {[%emt 0:00:11]} 4. b4 {[%emt 0:00:08]}
Bxb4 5. c3 Bc5 {[%emt 0:00:07]} 6. d4 {[%emt 0:00:04]} exd4 {[%emt 0:00:03]} 7.
O-O {[%emt 0:00:02]} Nf6 {[%emt 0:00:21]} 8. cxd4 {[%emt 0:00:04]} Be7 {[%emt
0:00:47]} 9. e5 {[%emt 0:00:22]} Ne4 {[%emt 0:00:15]} 10. Bd5 {[%emt 0:01:58]}
Ng5 {[%emt 0:00:13]} 11. Nxg5 {[%emt 0:00:06]} Bxg5 {[%emt 0:00:04]} 12. f4 {
[%emt 0:00:01]} Be7 {[%emt 0:00:17]} 13. f5 {[%emt 0:00:02]} d6 {[%emt 0:04:13]
} 14. Qh5 {[%emt 0:01:05]} O-O {[%emt 0:02:44]} 15. f6 {[%emt 0:00:28]} dxe5 {
[%emt 0:01:38]} 16. fxe7 {[%emt 0:00:28]} Nxe7 {[%emt 0:01:03]} 17. Bxf7+ {
[%emt 0:00:30]} Kh8 {[%emt 0:00:03]} 18. Qxe5 {[%emt 0:00:32]} Nc6 {[%emt 0:00:
33]} 19. Qd5 {[%emt 0:00:49]} Qxd5 {[%emt 0:03:20]} 20. Bxd5 {[%emt 0:00:01]}
Rxf1+ {[%emt 0:00:03]} 21. Kxf1 {[%emt 0:00:02]} Nxd4 {[%emt 0:00:02]} 22. Na3
{[%emt 0:00:17]} c6 {[%emt 0:00:38]} 23. Bb2 {[%emt 0:00:30]} Nf5 {[%emt 0:00:
30]} 24. Re1 {[%emt 0:00:37]} Bd7 {[%emt 0:00:28]} 25. Be6 {[%emt 0:00:03]}
Bxe6 {[%emt 0:00:11]} 26. Rxe6 {[%emt 0:00:02]} Rf8 {[%emt 0:00:05]} 27. Ke2 {
[%emt 0:00:18]} h5 {[%emt 0:01:12]} 28. Nc2 {[%emt 0:00:22]} Kh7 {[%emt 0:00:
22]} 29. Nd4 {[%emt 0:00:11]} Nh6 {[%emt 0:00:04]} 30. Re7 {[%emt 0:00:06]} Ng4
{[%emt 0:00:04]} 31. Nf3 {[%emt 0:00:08]} Nf6 {[%emt 0:00:19]} 32. Bxf6 {[%emt
0:00:48]} Rxf6 {[%emt 0:00:02]} 33. Rxb7 {[%emt 0:00:02]} a5 {[%emt 0:00:08]}
34. Ra7 {[%emt 0:00:06]} Re6+ {[%emt 0:00:04]} 35. Kd3 {[%emt 0:00:07]} Rg6 {
[%emt 0:00:05]} 36. g3 {[%emt 0:00:18]} Rf6 {[%emt 0:00:04]} 37. Ng5+ {[%emt 0:
00:18]} Kg6 {[%emt 0:00:09]} 38. Rxa5 {[%emt 0:00:06]} Rf2 {[%emt 0:00:21]} 39.
h4 {[%emt 0:00:16]} Rf1 {[%emt 0:00:23]} 40. Rc5 {[%emt 0:00:18]} Rd1+ {[%emt
0:00:05]} 41. Ke2 {[%emt 0:00:17]} Rd6 {[%emt 0:00:04]} 42. a4 {[%emt 0:00:02]}
Rd7 {[%emt 0:00:20]} 43. Rxc6+ {[%emt 0:00:10]} Kf5 {[%emt 0:00:03]} 44. Rc4 {
[%emt 0:00:02]} Re7+ {[%emt 0:00:05]} 45. Kf3 {[%emt 0:00:06]} Rb7 {[%emt 0:00:
02]} 46. Rc3 {[%emt 0:00:26]} Ra7 {[%emt 0:00:09]} 47. Ra3 {[%emt 0:00:02]} Ra5
{[%emt 0:00:09]} 48. Ne4 {[%emt 0:00:28]} Ke5 {[%emt 0:00:03]} 49. Nd2 {[%emt
0:01:33]} Rd5 {[%emt 0:00:27]} 50. Nc4+ {[%emt 0:00:25]} Kd4 {[%emt 0:00:06]}
51. Nb6 {[%emt 0:00:22]} Rf5+ {[%emt 0:00:03]} 52. Kg2 {[%emt 0:00:06]} Ra5 {
[%emt 0:00:24]} 53. Rf3 {[%emt 0:00:30]} Ra6 {[%emt 0:00:06]} 54. Rf4+ {[%emt
0:00:21]} Kd3 {[%emt 0:00:24]} 55. Nd7 {[%emt 0:00:11]} Ra5 {[%emt 0:00:03]}
56. Nf8 {[%emt 0:00:12]} Rc5 {[%emt 0:00:23]} 57. Ne6 {[%emt 0:00:13]} Rc2+ {
[%emt 0:00:05]} 58. Rf2 {[%emt 0:00:06]} Rc4 {[%emt 0:00:03]} 59. Nxg7 {[%emt
0:00:04]} Rxa4 {[%emt 0:00:05]} 60. Nxh5 {[%emt 0:00:02]} Rc4 {[%emt 0:00:07]}
61. Nf4+ {[%emt 0:00:02]} Ke4 {[%emt 0:00:02]} 62. h5 {[%emt 0:00:02]} Kf5 {
[%emt 0:00:04]} 63. Kh3 {[%emt 0:00:05]} Kg5 {[%emt 0:00:05]} 64. Ra2 {[%emt 0:
00:20]} Rc1 {[%emt 0:00:25]} 65. Ra5+ {[%emt 0:00:02]} Kh6 {[%emt 0:00:03]} 66.
g4 {[%emt 0:00:04]} Rf1 {[%emt 0:00:12]} 67. g5+ {[%emt 0:00:07]} Kh7 {[%emt 0:
00:02]} 68. Kg4 {[%emt 0:00:03]} Rg1+ {[%emt 0:00:06]} 69. Kf5 {[%emt 0:00:03]}
Rb1 {[%emt 0:00:06]} 70. Ra7+ {[%emt 0:00:12]} Kg8 {[%emt 0:00:04]} 71. Kf6 {
[%emt 0:00:20]} Rb6+ {[%emt 0:00:37]} 72. Ne6 {[%emt 0:00:08]} Rb8 {[%emt 0:00:
08]} 73. h6 {[%emt 0:00:16]} Re8 {[%emt 0:00:14]} 74. g6 {[%emt 0:00:13]} Rb8 {
[%emt 0:00:25]} 75. Rf7 {[%emt 0:00:33]} 1-0

[Event "16th EWICC 2015"]
[Site "Kutaisi"]
[Date "2015.06.03"]
[Round "11"]
[White "Giorgadze, Elene"]
[Black "Melashvili, Nino"]
[Result "0-1"]
[ECO "B01"]
[WhiteElo "1185"]
[BlackElo "2173"]
[Annotator "Robot 11"]
[PlyCount "26"]
[EventDate "2015.??.??"]
[EventCountry "GEO"]
[TimeControl "900+10"]

1. e4 {[%emt 0:00:02]} d5 {[%emt 0:00:02]} 2. exd5 {[%emt 0:00:02]} Nf6 {[%emt
0:00:00]} 3. Nc3 {[%emt 0:00:09]} Nxd5 {[%emt 0:00:05]} 4. Nxd5 {[%emt 0:00:11]
} Qxd5 {[%emt 0:00:02]} 5. d4 {[%emt 0:00:28]} Nc6 {[%emt 0:00:04]} 6. Nf3 {
[%emt 0:00:03]} Bg4 {[%emt 0:00:02]} 7. c3 {[%emt 0:01:53]} e5 {[%emt 0:01:34]}
8. dxe5 {[%emt 0:00:55]} Qxd1+ {[%emt 0:00:11]} 9. Kxd1 {[%emt 0:00:07]} O-O-O+
{[%emt 0:00:05]} 10. Kc2 {[%emt 0:00:25]} Bf5+ {[%emt 0:03:05]} 11. Kb3 {[%emt
0:00:21]} Na5+ {[%emt 0:02:01]} 12. Ka4 {[%emt 0:00:25]} Rd5 {[%emt 0:00:34]}
13. c4 {[%emt 0:01:07]} Bd7# {[%emt 0:00:07]} 0-1

[Event "16th EWICC 2015"]
[Site "Kutaisi"]
[Date "2015.06.03"]
[Round "11"]
[White "Petrenko, Svetlana"]
[Black "Lomineishvili, Maia"]
[Result "1/2-1/2"]
[ECO "B01"]
[WhiteElo "2207"]
[BlackElo "2364"]
[Annotator "Robot 11"]
[PlyCount "189"]
[EventDate "2015.??.??"]
[EventCountry "GEO"]
[TimeControl "900+10"]

1. e4 {[%emt 0:00:01]} d5 {[%emt 0:00:04]} 2. exd5 {[%emt 0:00:03]} Qxd5 {
[%emt 0:00:02]} 3. Nc3 {[%emt 0:00:01]} Qd6 {[%emt 0:00:00]} 4. d4 {[%emt 0:00:
07]} c6 {[%emt 0:00:01]} 5. Nf3 {[%emt 0:00:06]} Nf6 {[%emt 0:00:03]} 6. Be2 {
[%emt 0:00:11]} Bg4 {[%emt 0:00:10]} 7. h3 {[%emt 0:00:12]} Bh5 {[%emt 0:00:09]
} 8. g4 {[%emt 0:00:53]} Bg6 {[%emt 0:00:02]} 9. Ne5 {[%emt 0:00:07]} Nbd7 {
[%emt 0:00:34]} 10. Nxg6 {[%emt 0:00:12]} hxg6 {[%emt 0:00:04]} 11. Be3 {[%emt
0:00:51]} Nb6 {[%emt 0:00:24]} 12. Qd2 {[%emt 0:00:58]} O-O-O {[%emt 0:01:36]}
13. O-O-O {[%emt 0:00:14]} Nbd5 {[%emt 0:00:08]} 14. Nxd5 {[%emt 0:01:35]} Nxd5
{[%emt 0:00:03]} 15. c4 {[%emt 0:00:10]} Nxe3 {[%emt 0:00:10]} 16. fxe3 {[%emt
0:00:02]} e6 {[%emt 0:00:12]} 17. Bf3 {[%emt 0:00:48]} Be7 {[%emt 0:00:06]} 18.
c5 {[%emt 0:01:32]} Qc7 {[%emt 0:00:56]} 19. Qf2 {[%emt 0:01:23]} Bh4 {[%emt 0:
00:14]} 20. Qe2 {[%emt 0:00:50]} Bg5 {[%emt 0:00:37]} 21. Kb1 {[%emt 0:00:15]}
Kb8 {[%emt 0:00:16]} 22. Rd3 {[%emt 0:00:40]} e5 {[%emt 0:00:26]} 23. Qg2 {
[%emt 0:01:58]} exd4 {[%emt 0:00:51]} 24. exd4 {[%emt 0:00:07]} Rhe8 {[%emt 0:
01:45]} 25. d5 {[%emt 0:02:01]} cxd5 {[%emt 0:00:23]} 26. Rxd5 {[%emt 0:00:14]}
Rxd5 {[%emt 0:00:21]} 27. Bxd5 {[%emt 0:00:02]} Rd8 {[%emt 0:03:49]} 28. Rd1 {
[%emt 0:02:10]} Qxc5 {[%emt 0:00:24]} 29. Qg3+ {[%emt 0:00:06]} Qc7 {[%emt 0:
01:47]} 30. Qb3 {[%emt 0:00:18]} f6 {[%emt 0:00:34]} 31. a4 {[%emt 0:00:27]}
Rd7 {[%emt 0:00:33]} 32. Re1 {[%emt 0:00:45]} a6 {[%emt 0:00:04]} 33. Re8+ {
[%emt 0:00:23]} Ka7 {[%emt 0:00:01]} 34. Ka2 {[%emt 0:00:18]} Bc1 {[%emt 0:00:
24]} 35. Re2 {[%emt 0:00:20]} Qd6 {[%emt 0:00:22]} 36. Be4 {[%emt 0:00:18]} Bf4
{[%emt 0:00:17]} 37. Bxg6 {[%emt 0:00:03]} Be5 {[%emt 0:00:03]} 38. Rc2 {[%emt
0:00:06]} Qd4 {[%emt 0:00:15]} 39. Bf5 {[%emt 0:00:08]} Rd6 {[%emt 0:00:32]}
40. Rc4 {[%emt 0:00:02]} Qb6 {[%emt 0:00:56]} 41. Rb4 {[%emt 0:00:11]} Qc7 {
[%emt 0:00:43]} 42. Be4 {[%emt 0:00:03]} b6 {[%emt 0:00:38]} 43. Qg8 {[%emt 0:
00:31]} Rd8 {[%emt 0:00:06]} 44. Qc4 {[%emt 0:00:14]} Rd2 {[%emt 0:00:33]} 45.
Qxc7+ {[%emt 0:00:11]} Bxc7 {[%emt 0:00:00]} 46. Rc4 Be5 47. Rc2 {[%emt 0:00:
13]} Rd4 {[%emt 0:00:01]} 48. Bc6 {[%emt 0:00:02]} g5 {[%emt 0:00:04]} 49. Be8
{[%emt 0:00:15]} Rd3 {[%emt 0:00:03]} 50. Bg6 {[%emt 0:00:19]} Rxh3 {[%emt 0:
00:01]} 51. Rd2 {[%emt 0:00:02]} Kb7 {[%emt 0:00:03]} 52. Be4+ {[%emt 0:00:10]}
Kc7 {[%emt 0:00:01]} 53. Rc2+ {[%emt 0:00:11]} Kd7 {[%emt 0:00:02]} 54. Rd2+ {
[%emt 0:00:19]} Ke7 {[%emt 0:00:03]} 55. Bf5 {[%emt 0:00:13]} Rg3 {[%emt 0:00:
10]} 56. Kb1 {[%emt 0:00:11]} Rb3 {[%emt 0:00:14]} 57. Ka2 {[%emt 0:00:01]} Rb4
{[%emt 0:00:03]} 58. b3 {[%emt 0:00:05]} Bd4 {[%emt 0:00:08]} 59. Ka3 {[%emt 0:
00:20]} Bc5 {[%emt 0:00:02]} 60. Rd7+ {[%emt 0:00:08]} Ke8 {[%emt 0:00:00]} 61.
Kb2 {[%emt 0:00:08]} Rf4 {[%emt 0:00:08]} 62. Rh7 {[%emt 0:00:11]} Be7 {[%emt
0:00:19]} 63. Rh8+ {[%emt 0:00:17]} Bf8 {[%emt 0:00:05]} 64. Kc3 {[%emt 0:00:
12]} Kf7 {[%emt 0:00:29]} 65. Rh7+ {[%emt 0:00:02]} Bg7 {[%emt 0:00:00]} 66.
Rh3 {[%emt 0:00:07]} Bf8 {[%emt 0:00:06]} 67. Rh7+ {[%emt 0:00:05]} Bg7 {[%emt
0:00:08]} 68. Rh3 {[%emt 0:00:02]} b5 {[%emt 0:00:19]} 69. axb5 {[%emt 0:00:01]
} axb5 {[%emt 0:00:01]} 70. Rd3 {[%emt 0:00:24]} b4+ {[%emt 0:00:10]} 71. Kc2 {
[%emt 0:00:09]} Bf8 {[%emt 0:00:01]} 72. Rd7+ {[%emt 0:00:06]} Ke8 {[%emt 0:00:
01]} 73. Rb7 {[%emt 0:00:09]} Bd6 {[%emt 0:00:03]} 74. Kd3 {[%emt 0:00:09]} Be5
{[%emt 0:00:06]} 75. Be6 {[%emt 0:00:19]} Rd4+ {[%emt 0:00:14]} 76. Kc2 {[%emt
0:00:17]} Kd8 {[%emt 0:00:08]} 77. Rf7 {[%emt 0:00:15]} Rd6 {[%emt 0:00:09]}
78. Bf5 {[%emt 0:00:05]} Rc6+ {[%emt 0:00:02]} 79. Kd2 {[%emt 0:00:14]} Rc3 {
[%emt 0:00:01]} 80. Rd7+ {[%emt 0:00:07]} Ke8 {[%emt 0:00:01]} 81. Rd3 {[%emt
0:00:02]} Bf4+ {[%emt 0:00:33]} 82. Ke2 {[%emt 0:00:04]} Rc2+ {[%emt 0:00:30]}
83. Kf3 {[%emt 0:00:02]} Rb2 {[%emt 0:00:19]} 84. Ke4 {[%emt 0:00:10]} Be5 {
[%emt 0:00:01]} 85. Kd5 {[%emt 0:00:07]} Bc3 {[%emt 0:00:01]} 86. Re3+ {[%emt
0:00:21]} Kf8 {[%emt 0:00:07]} 87. Kc4 {[%emt 0:00:09]} Rf2 {[%emt 0:00:08]}
88. Rh3 {[%emt 0:00:11]} Ke7 {[%emt 0:00:02]} 89. Re3+ {[%emt 0:00:05]} Kd6 {
[%emt 0:01:09]} 90. Re6+ {[%emt 0:00:03]} Kc7 {[%emt 0:00:03]} 91. Re7+ {[%emt
0:00:19]} Kd8 {[%emt 0:00:04]} 92. Rd7+ {[%emt 0:00:07]} Ke8 {[%emt 0:00:01]}
93. Rh7 {[%emt 0:00:05]} Rd2 {[%emt 0:00:38]} 94. Kc5 {[%emt 0:00:11]} Kd8 {
[%emt 0:00:50]} 95. Rh8+ {[%emt 0:00:12]} 1/2-1/2

[Event "16th EWICC 2015"]
[Site "Kutaisi"]
[Date "2015.06.03"]
[Round "11"]
[White "Daulyte, Deimante"]
[Black "Charochkina, Daria"]
[Result "0-1"]
[ECO "B18"]
[WhiteElo "2402"]
[BlackElo "2391"]
[Annotator "Robot 11"]
[PlyCount "114"]
[EventDate "2015.??.??"]
[EventCountry "GEO"]
[TimeControl "900+10"]

1. e4 {[%emt 0:00:03]} c6 {[%emt 0:00:01]} 2. d4 {[%emt 0:00:02]} d5 {[%emt 0:
00:01]} 3. Nd2 {[%emt 0:00:02]} dxe4 {[%emt 0:00:03]} 4. Nxe4 {[%emt 0:00:02]}
Bf5 {[%emt 0:00:02]} 5. Ng3 {[%emt 0:00:03]} Bg6 {[%emt 0:00:01]} 6. Nh3 {
[%emt 0:00:03]} e6 {[%emt 0:00:06]} 7. Bc4 {[%emt 0:00:04]} Nf6 {[%emt 0:00:06]
} 8. O-O {[%emt 0:00:07]} Bd6 {[%emt 0:00:03]} 9. f4 {[%emt 0:00:04]} Qc7 {
[%emt 0:01:00]} 10. Kh1 {[%emt 0:00:03]} O-O {[%emt 0:06:02]} 11. f5 {[%emt 0:
00:08]} exf5 {[%emt 0:00:01]} 12. Nxf5 {[%emt 0:00:02]} Nbd7 {[%emt 0:00:31]}
13. Nxd6 {[%emt 0:01:25]} Qxd6 {[%emt 0:00:02]} 14. Bf4 {[%emt 0:00:13]} Qb4 {
[%emt 0:00:02]} 15. Bb3 {[%emt 0:00:04]} Nd5 {[%emt 0:01:04]} 16. c3 {[%emt 0:
02:52]} Qe7 {[%emt 0:01:20]} 17. Re1 {[%emt 0:01:59]} Qd8 {[%emt 0:00:26]} 18.
Qf3 {[%emt 0:01:12]} N7b6 {[%emt 0:00:42]} 19. Bg5 {[%emt 0:01:01]} Qd7 {[%emt
0:00:47]} 20. c4 {[%emt 0:01:04]} Nb4 {[%emt 0:00:03]} 21. Qc3 {[%emt 0:03:30]}
Nd3 {[%emt 0:03:53]} 22. Re3 {[%emt 0:00:03]} Qf5 {[%emt 0:00:00]} 23. Rd1 {
[%emt 0:00:23]} Nf2+ {[%emt 0:00:49]} 24. Nxf2 {[%emt 0:00:02]} Qxg5 {[%emt 0:
00:01]} 25. Ne4 {[%emt 0:00:31]} Bxe4 {[%emt 0:00:26]} 26. Rxe4 {[%emt 0:00:01]
} Rae8 {[%emt 0:00:27]} 27. Qe1 {[%emt 0:00:55]} Qd8 {[%emt 0:00:21]} 28. d5 {
[%emt 0:00:07]} Rxe4 {[%emt 0:00:18]} 29. Qxe4 {[%emt 0:00:02]} cxd5 {[%emt 0:
00:01]} 30. cxd5 {[%emt 0:00:04]} Qd6 {[%emt 0:00:02]} 31. a4 {[%emt 0:00:50]}
Nd7 {[%emt 0:00:06]} 32. Qd4 {[%emt 0:00:14]} Nc5 {[%emt 0:00:44]} 33. Bc2 {
[%emt 0:00:18]} a5 {[%emt 0:00:00]} 34. Qh4 {[%emt 0:00:20]} g6 {[%emt 0:00:07]
} 35. Qd4 {[%emt 0:00:10]} Re8 {[%emt 0:00:11]} 36. Qf2 {[%emt 0:01:07]} b6 {
[%emt 0:00:04]} 37. h3 {[%emt 0:00:08]} Re5 {[%emt 0:00:03]} 38. Qf3 {[%emt 0:
00:13]} Nb7 {[%emt 0:00:24]} 39. Bb3 {[%emt 0:00:33]} Qe7 {[%emt 0:00:33]} 40.
Qf2 {[%emt 0:00:40]} Qb4 {[%emt 0:00:13]} 41. Qc2 {[%emt 0:00:41]} Nd6 {[%emt
0:00:13]} 42. Rf1 {[%emt 0:00:14]} Nf5 {[%emt 0:00:07]} 43. Kh2 {[%emt 0:00:11]
} Kg7 {[%emt 0:00:24]} 44. Rf3 {[%emt 0:00:10]} Nd4 {[%emt 0:00:09]} 45. Qc3 {
[%emt 0:00:02]} Nxf3+ {[%emt 0:00:02]} 46. Qxf3 {[%emt 0:00:01]} Qd6 {[%emt 0:
00:03]} 47. Qc3 {[%emt 0:00:10]} f6 {[%emt 0:00:10]} 48. Qg3 {[%emt 0:00:07]}
h5 {[%emt 0:00:05]} 49. h4 {[%emt 0:00:09]} Kf7 {[%emt 0:00:27]} 50. Kg1 {
[%emt 0:00:29]} Kg7 {[%emt 0:00:18]} 51. Kh2 {[%emt 0:00:06]} f5 {[%emt 0:00:
06]} 52. Kh1 {[%emt 0:00:20]} f4 {[%emt 0:00:02]} 53. Qc3 {[%emt 0:00:02]} Kh7
{[%emt 0:00:02]} 54. Ba2 {[%emt 0:00:20]} Qe7 {[%emt 0:00:17]} 55. Qh3 {[%emt
0:00:11]} Re3 {[%emt 0:00:05]} 56. Qc8 {[%emt 0:00:07]} Qxh4+ {[%emt 0:00:07]}
57. Kg1 {[%emt 0:00:01]} Re1# {[%emt 0:00:01]} 0-1

[Event "16th EWICC 2015"]
[Site "Kutaisi"]
[Date "2015.06.03"]
[Round "11"]
[White "Khomeriki, Nino"]
[Black "Arakhamia-Grant, Ketevan"]
[Result "1-0"]
[ECO "A05"]
[WhiteElo "2228"]
[BlackElo "2393"]
[Annotator "Robot 11"]
[PlyCount "103"]
[EventDate "2015.??.??"]
[EventCountry "GEO"]
[TimeControl "900+10"]

1. Nf3 {[%emt 0:00:02]} Nf6 {[%emt 0:00:05]} 2. g3 {[%emt 0:00:01]} g6 {[%emt
0:00:12]} 3. b3 {[%emt 0:00:01]} Bg7 {[%emt 0:00:08]} 4. Bb2 {[%emt 0:00:01]}
O-O {[%emt 0:01:31]} 5. Bg2 {[%emt 0:00:04]} d6 {[%emt 0:00:15]} 6. d4 {[%emt
0:00:02]} Nbd7 {[%emt 0:00:16]} 7. O-O {[%emt 0:00:27]} e5 {[%emt 0:00:06]} 8.
dxe5 {[%emt 0:00:03]} Ng4 {[%emt 0:00:03]} 9. c4 {[%emt 0:01:39]} Ndxe5 {[%emt
0:00:59]} 10. Nxe5 {[%emt 0:00:16]} Nxe5 {[%emt 0:00:03]} 11. Nc3 {[%emt 0:00:
15]} Rb8 {[%emt 0:01:17]} 12. Qd2 {[%emt 0:00:17]} a6 {[%emt 0:00:14]} 13. Rad1
{[%emt 0:00:42]} Be6 {[%emt 0:00:20]} 14. h3 {[%emt 0:03:36]} b5 {[%emt 0:01:
32]} 15. f4 {[%emt 0:00:03]} Nd7 {[%emt 0:00:02]} 16. e4 {[%emt 0:00:28]} f6 {
[%emt 0:02:07]} 17. cxb5 {[%emt 0:00:38]} axb5 {[%emt 0:00:02]} 18. Kh2 {[%emt
0:03:00]} Re8 {[%emt 0:00:02]} 19. Nd5 {[%emt 0:00:40]} Ra8 {[%emt 0:05:23]}
20. a3 {[%emt 0:00:13]} c6 {[%emt 0:01:08]} 21. f5 {[%emt 0:00:04]} Bxd5 {
[%emt 0:00:24]} 22. exd5 {[%emt 0:00:02]} c5 {[%emt 0:00:01]} 23. fxg6 {[%emt
0:00:07]} hxg6 {[%emt 0:00:02]} 24. g4 {[%emt 0:01:15]} Ne5 {[%emt 0:00:28]}
25. Qc2 {[%emt 0:00:01]} Qd7 {[%emt 0:00:51]} 26. Be4 {[%emt 0:00:28]} Re7 {
[%emt 0:00:28]} 27. Bxe5 {[%emt 0:01:18]} Rxe5 {[%emt 0:00:02]} 28. Bxg6 {
[%emt 0:00:02]} Qe7 {[%emt 0:00:08]} 29. Rf2 {[%emt 0:00:23]} Rxa3 {[%emt 0:00:
02]} 30. Bf5 {[%emt 0:00:15]} Bh6 {[%emt 0:00:10]} 31. Be6+ {[%emt 0:00:19]}
Kg7 {[%emt 0:00:01]} 32. Rdf1 {[%emt 0:00:15]} Bg5 {[%emt 0:00:04]} 33. Rf3 {
[%emt 0:00:48]} Qa7 {[%emt 0:00:24]} 34. R1f2 {[%emt 0:02:06]} Bh4 {[%emt 0:00:
02]} 35. Rg2 {[%emt 0:00:11]} Ra1 {[%emt 0:00:02]} 36. g5 {[%emt 0:00:09]} Rxg5
{[%emt 0:00:13]} 37. Rxg5+ {[%emt 0:00:19]} Bxg5 {[%emt 0:00:01]} 38. Rf2 {
[%emt 0:00:16]} Qa5 {[%emt 0:00:06]} 39. Qe4 {[%emt 0:00:31]} Qe1 {[%emt 0:01:
22]} 40. Qxe1 {[%emt 0:00:02]} Rxe1 {[%emt 0:00:01]} 41. Ra2 Kg6 {[%emt 0:00:
28]} 42. Ra8 {[%emt 0:00:08]} Re2+ {[%emt 0:00:20]} 43. Kg3 {[%emt 0:00:01]}
Re3+ {[%emt 0:00:10]} 44. Kg4 {[%emt 0:00:01]} Re4+ {[%emt 0:00:13]} 45. Kg3 {
[%emt 0:00:08]} Rb4 {[%emt 0:00:10]} 46. Rg8+ {[%emt 0:00:16]} Kh7 {[%emt 0:00:
05]} 47. Rd8 {[%emt 0:00:06]} Bf4+ {[%emt 0:00:07]} 48. Kg4 {[%emt 0:00:08]}
Be5+ {[%emt 0:00:03]} 49. Kh5 {[%emt 0:00:07]} Rxb3 {[%emt 0:00:38]} 50. Rd7+ {
[%emt 0:00:06]} Kh8 {[%emt 0:00:02]} 51. Kg6 {[%emt 0:00:46]} Rg3+ {[%emt 0:00:
08]} 52. Bg4 {[%emt 0:00:02]} 1-0